bitfinex/quotes_BTCUSD_20250624
["timestamp","ask_amount","ask_price","bid_price","bid_amount"]
[1750783069722,0.03225822,105560.0,105550.0,1.34216697]
[1750783069942,0.03225813,105560.0,105550.0,1.67222456]
[1750783070416,0.02278521,105560.0,105550.0,1.67222456]
[1750783070629,0.02865813,105560.0,105550.0,1.67222456]
[1750783071074,0.03813123,105560.0,105550.0,1.67218456]
[1750783071297,0.03813123,105560.0,105550.0,1.6816582]
[1750783071298,0.04173123,105560.0,105550.0,1.6816582]
[1750783071513,0.24217021,105560.0,105550.0,1.67218465]
[1750783071737,0.03375813,105560.0,105550.0,1.6816582]
[1750783071998,0.03813114,105560.0,105550.0,1.6816582]
[1750783073039,0.02865813,105560.0,105550.0,1.6816582]
[1750783073916,0.03813123,105560.0,105550.0,1.6816582]
[1750783074323,0.04760442,105560.0,105550.0,1.6816582]
[1750783074755,0.24067093,105560.0,105550.0,1.51398465]
[1750783074970,0.02428602,105560.0,105550.0,1.67218456]
[1750783075430,0.02428602,105560.0,105550.0,1.67218474]
[1750783075431,0.21375172,105560.0,105550.0,1.67218474]
[1750783075841,0.21375172,105560.0,105550.0,1.34212715]
[1750783076272,0.21375172,105560.0,105550.0,1.3231796]
[1750783077156,0.21375172,105560.0,105550.0,1.34212742]
[1750783078529,0.2042788,105560.0,105550.0,1.3326536]
[1750783078945,0.1948057,105560.0,105550.0,1.4826536]
[1750783079166,0.1948057,105560.0,105550.0,1.3244536]
[1750783079373,0.1948057,105560.0,105550.0,1.4826536]
[1750783079591,0.1948057,105560.0,105550.0,1.49212751]
[1750783080011,0.1948057,105560.0,105550.0,1.50160133]
[1750783081677,0.1948057,105560.0,105550.0,0.301]
[1750783081886,0.1948057,105560.0,105550.0,0.5014]
[1750783082094,0.2232577,105560.0,105550.0,0.5014]
[1750783082306,0.2232577,105560.0,105550.0,0.3432]
[1750783082512,0.2232577,105560.0,105550.0,0.5014]
[1750783083016,0.2232577,105560.0,105550.0,0.70035783]
[1750783083230,0.2181577,105560.0,105550.0,0.70983192]
[1750783083445,0.2181577,105560.0,105550.0,0.70883192]
[1750783083658,0.2191577,105560.0,105550.0,0.70883192]
[1750783084076,0.2191577,105560.0,105550.0,0.71830583]
[1750783084297,0.2191577,105560.0,105550.0,0.70883192]
[1750783085576,0.2201577,105560.0,105550.0,0.69935783]
[1750783086007,0.2201577,105560.0,105550.0,0.49895783]
[1750783086217,0.2201577,105560.0,105550.0,0.69935783]
[1750783086688,0.04016483,105560.0,105550.0,1.05783679]
[1750783086912,0.0306584,105560.0,105550.0,1.19783865]
[1750783087131,0.00224,105560.0,105550.0,1.34783865]
[1750783087344,0.00224,105560.0,105550.0,1.49783865]
[1750783091479,0.00224,105560.0,105550.0,1.16778106]
[1750783091692,0.00224,105560.0,105550.0,1.49783865]
[1750783094637,0.02118521,105560.0,105550.0,1.49783865]
[1750783095935,0.03065822,105560.0,105550.0,1.49783865]
[1750783096577,0.03065822,105560.0,105550.0,1.49773865]
[1750783096780,0.03065822,105560.0,105550.0,1.49783865]
[1750783096989,0.22012392,105560.0,105550.0,1.34783874]
[1750783097201,0.03065822,105560.0,105550.0,1.35731229]
[1750783097441,0.02118521,105560.0,105550.0,1.35731229]
[1750783097655,0.21425163,105560.0,105550.0,0.39550186]
[1750783097872,0.21425163,105560.0,105550.0,0.50032]
[1750783098084,0.24420363,105560.0,105550.0,0.50032]
[1750783098338,0.24270363,105560.0,105550.0,0.50032]
[1750783098557,0.57426122,105560.0,105550.0,0.30032]
[1750783099416,0.24420363,105560.0,105550.0,0.30032]
[1750783101084,0.24420363,105560.0,105550.0,0.1]
[1750783101216,0.24420363,105560.0,105550.0,0.30032]
[1750783102342,0.58420363,105560.0,105550.0,0.14216]
[1750783102549,0.58420363,105560.0,105550.0,0.30032]
[1750783102550,0.91426122,105560.0,105550.0,0.30032]
[1750783102971,0.58420363,105560.0,105550.0,0.30032]
[1750783104863,0.04016483,105560.0,105550.0,1.11997945]
[1750783105088,0.00224,105560.0,105550.0,1.15782697]
[1750783105297,0.00224,105560.0,105550.0,1.48788456]
[1750783105508,0.01171256,105560.0,105550.0,1.48788456]
[1750783105714,0.00224,105560.0,105550.0,1.48788456]
[1750783105976,0.00224,105560.0,105550.0,1.15782697]
[1750783106191,0.00224,105560.0,105550.0,1.48788456]
[1750783108338,0.00224,105560.0,105550.0,1.82788456]
[1750783111943,0.00224,105560.0,105550.0,1.49782697]
[1750783112150,0.00224,105560.0,105550.0,1.82788456]
[1750783114638,0.00224,105560.0,105550.0,1.84242541]
[1750783126897,0.00224,105560.0,105550.0,1.64210541]
[1750783127161,0.00224,105560.0,105550.0,1.84226541]
[1750783133958,0.00224,105560.0,105550.0,2.06958541]
[1750783135105,0.00224,105560.0,105550.0,2.76954541]
[1750783135333,0.00224,105560.0,105550.0,2.56942541]
[1750783135549,0.00224,105560.0,105550.0,2.76954541]
[1750783139670,0.00224,105560.0,105550.0,2.06954541]
[1750783141258,0.00224,105560.0,105550.0,1.73948782]
[1750783141496,0.00224,105560.0,105550.0,2.06954541]
[1750783143005,0.02118521,105560.0,105550.0,1.85488456]
[1750783143225,0.04013105,105560.0,105550.0,1.38490697]
[1750783143464,0.04013105,105560.0,105550.0,1.67086456]
[1750783143683,0.02118521,105560.0,105550.0,1.67086456]
[1750783143885,0.01171247,105560.0,105550.0,1.67086456]
[1750783144570,0.00224,105560.0,105550.0,1.71416456]
[1750783145188,0.01171247,105560.0,105550.0,1.71416456]
[1750783145400,0.02118512,105560.0,105550.0,1.71416456]
[1750783146286,0.02118503,105560.0,105550.0,1.71416456]
[1750783146512,0.00224,105560.0,105550.0,1.71416456]
[1750783147910,0.01171247,105560.0,105550.0,1.71416456]
[1750783148341,0.00224,105560.0,105550.0,1.71416456]
[1750783152497,0.00224,105560.0,105550.0,1.38410697]
[1750783152707,0.00224,105560.0,105550.0,1.71416456]
[1750783155080,0.00224,105560.0,105550.0,2.06870541]
[1750783162285,0.00224,105560.0,105550.0,1.73864782]
[1750783162528,0.00224,105560.0,105550.0,2.06870541]
[1750783165975,0.00124,105560.0,105550.0,2.06870541]
[1750783166184,0.00124,105560.0,105550.0,2.77170541]
[1750783166622,0.00024,105560.0,105550.0,2.79066541]
[1750783167042,0.00024,105560.0,105550.0,2.79266541]
[1750783171298,0.00024,105560.0,105550.0,2.79246541]
[1750783172675,0.00024,105560.0,105550.0,2.09246541]
[1750783176060,0.00024,105560.0,105550.0,2.79246541]
[1750783176744,0.00024,105560.0,105550.0,2.09246541]
[1750783177377,0.00024,105560.0,105550.0,1.76240782]
[1750783177596,0.00024,105560.0,105550.0,2.09246541]
[1750783179697,0.00024,105560.0,105550.0,2.79246541]
[1750783180123,0.00024,105560.0,105550.0,2.09246541]
[1750783185455,0.00024,105560.0,105550.0,2.79246541]
[1750783193583,0.00024,105560.0,105550.0,2.79234541]
[1750783195294,0.00024,105560.0,105550.0,2.09234541]
[1750783198364,0.00024,105560.0,105550.0,2.37878682]
[1750783208480,0.00024,105560.0,105550.0,2.07878682]
[1750783208683,0.00024,105560.0,105550.0,2.37878682]
[1750783209154,0.00024,105560.0,105550.0,1.54798697]
[1750783209399,0.00024,105560.0,105550.0,1.67261647]
[1750783209629,0.03315786,105560.0,105550.0,1.46346292]
[1750783209859,0.04263087,105560.0,105550.0,1.37261647]
[1750783210080,0.23209657,105560.0,105550.0,1.5036691]
[1750783210305,0.05210397,105560.0,105550.0,1.52261647]
[1750783210530,0.05210397,105560.0,105550.0,1.54327574]
[1750783210766,0.04263087,105560.0,105550.0,1.54327574]
[1750783210979,0.02368503,105560.0,105550.0,1.54327574]
[1750783211191,0.00024,105560.0,105550.0,1.54327574]
[1750783211403,0.00971247,105560.0,105550.0,1.54327574]
[1750783211616,0.01918503,105560.0,105550.0,1.54327574]
[1750783211838,0.00024,105560.0,105550.0,1.54327574]
[1750783212296,0.00024,105560.0,105550.0,1.58747574]
[1750783219762,0.00971256,105560.0,105550.0,1.40856697]
[1750783220005,0.00971256,105560.0,105550.0,1.49359574]
[1750783220226,0.03813123,105560.0,105550.0,1.39315574]
[1750783220444,0.03195813,105560.0,105550.0,1.34359574]
[1750783220667,0.04143123,105560.0,105550.0,1.54315574]
[1750783220921,0.03195813,105560.0,105550.0,1.54315574]
[1750783221129,0.02865804,105560.0,105550.0,1.21424697]
[1750783221349,0.03813114,105560.0,105550.0,1.54315574]
[1750783221767,0.03813114,105560.0,105550.0,1.52419574]
[1750783222425,0.01918521,105560.0,105550.0,1.52419574]
[1750783222659,0.01918521,105560.0,105550.0,0.105]
[1750783222660,0.54206058,105560.0,105550.0,0.105]
[1750783222905,0.54206058,105560.0,105550.0,0.005]
[1750783222906,1.00601744,105560.0,105550.0,0.005]
[1750783223347,1.03006932,105560.0,105550.0,0.005]
[1750783223591,1.03106932,105560.0,105550.0,0.005]
[1750783223833,1.60251473,105560.0,105550.0,0.0005]
[1750783224319,0.92131604,105550.0,105540.0,0.002]
[1750783224535,1.1744979,105550.0,105540.0,0.002]
[1750783225664,1.0168179,105550.0,105540.0,0.002]
[1750783225892,0.87465359,105550.0,105540.0,0.002]
[1750783226133,0.87465359,105550.0,105540.0,0.004]
[1750783227295,0.71697359,105550.0,105540.0,0.004]
[1750783227522,0.87465359,105550.0,105540.0,0.004]
[1750783228232,0.65243274,105550.0,105540.0,0.004]
[1750783228465,0.52786642,105550.0,105540.0,0.004]
[1750783228719,0.53895765,105550.0,105540.0,0.004]
[1750783228934,0.86786642,105550.0,105540.0,0.004]
[1750783229584,0.54843156,105550.0,105540.0,0.19350161]
[1750783229783,0.53895765,105550.0,105540.0,0.04588]
[1750783230739,0.53895765,105550.0,105540.0,0.04388]
[1750783230954,0.53995765,105550.0,105540.0,0.04388]
[1750783232692,0.86886642,105550.0,105540.0,0.04388]
[1750783233556,0.54095765,105550.0,105540.0,0.04388]
[1750783233790,0.56941365,105550.0,105540.0,0.04388]
[1750783236688,0.89832242,105550.0,105540.0,0.04388]
[1750783239570,0.99379237,105550.0,105540.0,0.002]
[1750783239760,1.48041305,105550.0,105540.0,0.002]
[1750783240016,1.15150428,105550.0,105540.0,0.002]
[1750783241351,1.5449539,105550.0,105540.0,0.002]
[1750783244817,0.88713636,105550.0,105540.0,0.002]
[1750783245042,1.5449539,105550.0,105540.0,0.002]
[1750783245468,1.64042385,105550.0,105540.0,0.002]
[1750783246355,1.5449539,105550.0,105540.0,0.002]
[1750783246795,1.56262758,105550.0,105540.0,0.002]
[1750783247246,1.58524726,105550.0,105540.0,0.002]
[1750783251816,1.58529214,105550.0,105540.0,0.002]
[1750783252229,1.61362285,105550.0,105540.0,0.002]
[1750783252434,1.6202687,105550.0,105540.0,0.002]
[1750783254555,1.62031696,105550.0,105540.0,0.002]
[1750783255348,1.26303748,105550.0,105540.0,0.002]
[1750783256345,1.10539748,105550.0,105540.0,0.002]
[1750783256558,1.26303748,105550.0,105540.0,0.002]
[1750783258073,0.60980024,105550.0,105540.0,0.045]
[1750783258293,0.23888738,105550.0,105540.0,0.3712613]
[1750783258513,0.05887782,105550.0,105540.0,0.59021047]
[1750783258737,0.25783565,105550.0,105540.0,0.69518678]
[1750783259157,0.05887782,105550.0,105540.0,0.69518678]
[1750783259416,0.24836192,105550.0,105540.0,0.58131855]
[1750783259624,0.23888792,105550.0,105540.0,0.08684]
[1750783261134,0.56779669,105550.0,105540.0,0.08684]
[1750783261559,0.23888792,105550.0,105540.0,0.08684]
[1750783263767,0.21043192,105550.0,105540.0,0.08684]
[1750783264197,0.53934069,105550.0,105540.0,0.08684]
[1750783264433,0.21043192,105550.0,105540.0,0.08684]
[1750783265966,0.21043192,105550.0,105540.0,0.27634161]
[1750783266182,0.21043192,105550.0,105540.0,0.2952915]
[1750783266833,0.21043192,105550.0,105540.0,0.28581669]
[1750783267060,0.21043192,105550.0,105540.0,0.08684]
[1750783269041,0.21043192,105550.0,105540.0,1.09455336]
[1750783269042,0.002,105550.0,105540.0,1.09455336]
[1750783269271,0.20835495,105590.0,105580.0,0.0419]
[1750783269485,0.20835495,105590.0,105580.0,0.24134]
[1750783269703,0.208815,105590.0,105580.0,0.24134]
[1750783269921,0.208815,105590.0,105580.0,0.44024121]
[1750783269922,0.548815,105590.0,105580.0,0.44024121]
[1750783270142,0.3499301,105590.0,105580.0,0.44971243]
[1750783270385,0.02887083,105590.0,105580.0,0.25974356]
[1750783270610,0.05181066,105590.0,105580.0,0.44983243]
[1750783270837,0.04234025,105590.0,105580.0,0.80715405]
[1750783271062,0.04234025,105590.0,105580.0,0.79768319]
[1750783271284,0.00446005,105590.0,105580.0,0.78821224]
[1750783271513,0.00446005,105590.0,105580.0,0.99318496]
[1750783271740,0.01493001,105590.0,105580.0,1.14318496]
[1750783272196,0.01392992,105590.0,105580.0,1.14318496]
[1750783272414,0.01792992,105590.0,105580.0,1.14318496]
[1750783272634,0.01392992,105590.0,105580.0,1.14318496]
[1750783272874,0.00646005,105590.0,105580.0,1.29318496]
[1750783273562,0.00246005,105590.0,105580.0,1.29318496]
[1750783273784,0.00346005,105590.0,105580.0,1.29318496]
[1750783274010,0.00346005,105590.0,105580.0,0.76471619]
[1750783274248,0.00346005,105590.0,105580.0,1.09362496]
[1750783274467,0.00346005,105590.0,105580.0,1.29338496]
[1750783275682,0.00346005,105590.0,105580.0,1.09362496]
[1750783275916,0.00346005,105590.0,105580.0,1.29338496]
[1750783280808,0.00346005,105590.0,105580.0,0.96447619]
[1750783281027,0.00346005,105590.0,105580.0,1.29338496]
[1750783284620,0.00346005,105590.0,105580.0,1.29414496]
[1750783285535,0.00346005,105590.0,105580.0,1.09438496]
[1750783285772,0.00346005,105590.0,105580.0,1.29382496]
[1750783286204,0.00346005,105590.0,105580.0,1.09438496]
[1750783286444,0.00346005,105590.0,105580.0,1.29378496]
[1750783289900,0.00346005,105590.0,105580.0,1.29394496]
[1750783290586,0.00346005,105590.0,105580.0,1.09438496]
[1750783290805,0.00346005,105590.0,105580.0,1.29386496]
[1750783291704,0.00346005,105590.0,105580.0,1.09438496]
[1750783291916,0.00346005,105590.0,105580.0,1.29382496]
[1750783293843,0.01292983,105590.0,105580.0,0.96487619]
[1750783294043,0.01292983,105590.0,105580.0,0.42759167]
[1750783294044,0.22128189,105590.0,105580.0,0.42759167]
[1750783294279,0.23075302,105590.0,105580.0,0.29018981]
[1750783294478,0.21181283,105590.0,105580.0,0.48966981]
[1750783294850,0.00346005,105590.0,105580.0,0.89089197]
[1750783295554,0.00346005,105590.0,105580.0,0.98639383]
[1750783295989,0.00346005,105590.0,105580.0,0.98647383]
[1750783296846,0.01292983,105590.0,105580.0,0.98647383]
[1750783297479,0.01292992,105590.0,105580.0,0.98647383]
[1750783297948,0.02239997,105590.0,105580.0,0.98647383]
[1750783298165,0.01292992,105590.0,105580.0,0.98647383]
[1750783298381,0.02239997,105590.0,105580.0,0.98647383]
[1750783298597,0.01292992,105590.0,105580.0,0.98647383]
[1750783299024,0.01292983,105590.0,105580.0,0.78691383]
[1750783299253,0.01292983,105590.0,105580.0,0.98631383]
[1750783299449,0.02239979,105590.0,105580.0,0.98631383]
[1750783299693,0.01292983,105590.0,105580.0,0.98631383]
[1750783299910,0.02239979,105590.0,105580.0,0.65740506]
[1750783300120,0.03186993,105590.0,105580.0,0.65740506]
[1750783300809,0.02239979,105590.0,105580.0,0.65740506]
[1750783301028,0.01292983,105590.0,105580.0,0.65740506]
[1750783301674,0.02239979,105590.0,105580.0,0.65740506]
[1750783302524,0.03186993,105590.0,105580.0,0.65740506]
[1750783302749,0.00346005,105590.0,105580.0,1.28631383]
[1750783303894,0.00346005,105590.0,105580.0,1.36228363]
[1750783307621,0.00346005,105590.0,105580.0,1.70228363]
[1750783308983,0.0002,105620.0,105610.0,1.08929009]
[1750783309198,0.00033799,105620.0,105610.0,1.48411195]
[1750783312869,0.00033799,105620.0,105610.0,1.4934665]
[1750783313779,0.00033799,105620.0,105610.0,1.16455773]
[1750783314005,0.00033799,105620.0,105610.0,1.1934665]
[1750783314222,0.00033799,105620.0,105610.0,1.52143439]
[1750783314682,0.00033799,105620.0,105610.0,1.52179439]
[1750783316409,0.00033799,105620.0,105610.0,1.52235439]
[1750783317305,0.00033799,105620.0,105610.0,1.32247439]
[1750783317489,0.00033799,105620.0,105610.0,1.52227439]
[1750783318892,0.00033799,105620.0,105610.0,1.52223439]
[1750783319352,0.00033799,105620.0,105610.0,1.32247439]
[1750783319565,0.00033799,105620.0,105610.0,1.52219439]
[1750783321544,0.00033799,105620.0,105610.0,1.52215439]
[1750783322002,0.00980517,105620.0,105610.0,1.52215439]
[1750783322225,0.00033799,105620.0,105610.0,1.52215439]
[1750783323561,0.00033799,105620.0,105610.0,1.67215439]
[1750783324660,0.00033799,105620.0,105610.0,1.67207439]
[1750783325508,0.00033799,105620.0,105610.0,1.34316562]
[1750783325724,0.00033799,105620.0,105610.0,1.67207439]
[1750783330538,0.00033799,105620.0,105610.0,1.34316562]
[1750783330753,0.00033799,105620.0,105610.0,1.67207439]
[1750783334314,0.00033799,105620.0,105610.0,2.01207439]
[1750783335013,0.0002,105630.0,105620.0,1.25927823]
[1750783335244,0.0002,105640.0,105630.0,1.37039007]
[1750783335469,0.0002,105640.0,105630.0,1.53075007]
[1750783335686,0.0002,105640.0,105630.0,2.18856761]
[1750783336166,0.0002,105640.0,105630.0,2.28406947]
[1750783336387,0.0002,105640.0,105630.0,2.30061032]
[1750783336607,0.0002,105640.0,105630.0,2.28166032]
[1750783337058,0.0002,105640.0,105630.0,1.62384278]
[1750783337287,0.0002,105640.0,105630.0,2.28166032]
[1750783337956,0.0155924,105650.0,105640.0,1.03247786]
[1750783338149,0.0155924,105650.0,105640.0,1.17005972]
[1750783338617,0.0155924,105650.0,105640.0,1.54115095]
[1750783339074,0.0155924,105650.0,105640.0,1.9240549]
[1750783339957,0.0155924,105650.0,105640.0,1.89847572]
[1750783340167,0.0155924,105650.0,105640.0,1.90147572]
[1750783341035,0.0155924,105650.0,105640.0,2.06451572]
[1750783341736,0.0155924,105650.0,105640.0,1.83048695]
[1750783341997,0.0155924,105650.0,105640.0,2.02578133]
[1750783342249,0.23329188,105650.0,105640.0,1.38086186]
[1750783342476,0.5581358,105650.0,105640.0,0.003]
[1750783342706,0.8993358,105650.0,105640.0,0.003]
[1750783343168,1.00937851,105650.0,105640.0,0.003]
[1750783344367,1.19387229,105650.0,105640.0,0.003]
[1750783344837,0.03452183,105650.0,105640.0,1.07779227]
[1750783345107,0.03452183,105650.0,105640.0,0.57385502]
[1750783345108,0.02505698,105650.0,105640.0,0.57385502]
[1750783345324,0.02505698,105650.0,105640.0,1.46563757]
[1750783345325,0.0155924,105650.0,105640.0,1.46563757]
[1750783345543,0.0175924,105650.0,105640.0,1.26075757]
[1750783345767,0.0155924,105650.0,105640.0,1.56325943]
[1750783346010,0.0175924,105650.0,105640.0,1.56325943]
[1750783347573,0.0205924,105650.0,105640.0,1.56325943]
[1750783350793,0.0205924,105650.0,105640.0,1.57780028]
[1750783351027,0.0205924,105650.0,105640.0,1.91780028]
[1750783351248,0.0205924,105650.0,105640.0,2.43120283]
[1750783352430,0.0155924,105650.0,105640.0,2.43120283]
[1750783352626,0.0155924,105650.0,105640.0,1.92080028]
[1750783353558,0.0155924,105650.0,105640.0,1.93639228]
[1750783354706,0.0155924,105650.0,105640.0,1.93939228]
[1750783354933,0.0155924,105650.0,105640.0,2.45279483]
[1750783355402,0.0155924,105650.0,105640.0,1.93939228]
[1750783356288,0.0155924,105650.0,105640.0,2.45279483]
[1750783356513,0.0155924,105650.0,105640.0,1.93939228]
[1750783358494,0.0155924,105650.0,105640.0,2.45279483]
[1750783358954,0.0155924,105650.0,105640.0,1.93939228]
[1750783360488,0.0155924,105650.0,105640.0,1.86342248]
[1750783366691,0.0155924,105650.0,105640.0,1.88237248]
[1750783371383,0.0155924,105650.0,105640.0,1.36896993]
[1750783371584,0.0155924,105650.0,105640.0,1.86342248]
[1750783372251,0.0155924,105650.0,105640.0,2.37682503]
[1750783374088,0.0155924,105650.0,105640.0,2.37658503]
[1750783376307,0.0155924,105650.0,105640.0,1.34977993]
[1750783376525,0.0155924,105650.0,105640.0,2.37658503]
[1750783377844,0.0155924,105650.0,105640.0,3.07658503]
[1750783378075,0.0155924,105650.0,105640.0,2.37658503]
[1750783378287,0.0002,105670.0,105660.0,1.26501911]
[1750783378505,0.00033793,105670.0,105660.0,2.50564759]
[1750783378933,0.00033793,105670.0,105660.0,2.53405959]
[1750783381966,0.00033793,105670.0,105660.0,3.23405959]
[1750783382176,0.00033793,105670.0,105660.0,3.2625026]
[1750783382386,0.00033793,105670.0,105660.0,3.27213053]
[1750783387594,0.00033793,105670.0,105660.0,3.60015384]
[1750783387808,0.00033793,105670.0,105660.0,3.27213053]
[1750783388248,0.00033793,105670.0,105660.0,3.60015384]
[1750783388698,0.0002,105690.0,105680.0,1.52368368]
[1750783388919,0.0002,105690.0,105680.0,1.82570554]
[1750783389363,0.0002,105690.0,105680.0,1.85411454]
[1750783389584,0.0002,105690.0,105680.0,1.52609123]
[1750783389809,0.0002,105690.0,105680.0,1.31957123]
[1750783390033,0.0072,105690.0,105680.0,1.34772223]
[1750783390253,0.0072,105690.0,105680.0,1.14116223]
[1750783390696,0.0072,105690.0,105680.0,1.34788223]
[1750783391588,0.0072,105690.0,105680.0,1.34784223]
[1750783392287,0.0072,105690.0,105680.0,1.14116223]
[1750783392513,0.0072,105690.0,105680.0,1.34784223]
[1750783393381,0.00572,105690.0,105680.0,1.34784223]
[1750783393837,0.00572,105690.0,105680.0,1.34776223]
[1750783394275,0.00572,105690.0,105680.0,1.71818554]
[1750783394677,0.00572,105690.0,105680.0,1.74659554]
[1750783394953,0.00572,105690.0,105680.0,1.41857223]
[1750783395829,0.00572,105690.0,105680.0,1.39767223]
[1750783397085,0.00572,105690.0,105680.0,1.41827223]
[1750783398602,0.00572,105690.0,105680.0,1.74629554]
[1750783399674,0.00572,105690.0,105680.0,1.41827223]
[1750783404110,0.00572,105690.0,105680.0,1.74719554]
[1750783404568,0.00572,105690.0,105680.0,1.41917223]
[1750783404783,0.00572,105690.0,105680.0,1.74719554]
[1750783405206,0.00572,105690.0,105680.0,1.44568977]
[1750783405427,0.00572,105690.0,105680.0,2.20173639]
[1750783406081,0.004,105690.0,105680.0,1.87439308]
[1750783406296,0.14388748,105700.0,105690.0,0.21761647]
[1750783406514,0.14388748,105700.0,105690.0,0.41311833]
[1750783406951,0.14388748,105700.0,105690.0,1.06916495]
[1750783407189,0.14388748,105700.0,105690.0,0.41311833]
[1750783407431,0.14388748,105700.0,105690.0,0.74114164]
[1750783408073,0.14388748,105700.0,105690.0,1.06916495]
[1750783408295,0.14388748,105700.0,105690.0,1.26476495]
[1750783408539,0.14388748,105700.0,105690.0,1.6962756]
[1750783409228,0.14388748,105700.0,105690.0,1.04022898]
[1750783409652,0.14388748,105700.0,105690.0,1.6962756]
[1750783410563,0.14388748,105700.0,105690.0,2.02429891]
[1750783411003,0.14388748,105700.0,105690.0,1.6962756]
[1750783411432,0.14388748,105700.0,105690.0,1.6942756]
[1750783411650,0.14388748,105700.0,105690.0,2.3942756]
[1750783411860,0.14388748,105700.0,105690.0,2.3972756]
[1750783412063,0.14388748,105700.0,105690.0,2.4002756]
[1750783413388,0.14388748,105700.0,105690.0,1.74422898]
[1750783413601,0.14388748,105700.0,105690.0,2.3243058]
[1750783414043,0.14388748,105700.0,105690.0,2.86048911]
[1750783414261,0.0002,105740.0,105730.0,0.86753414]
[1750783414471,0.00065988,105740.0,105730.0,1.49921931]
[1750783414907,0.00065988,105740.0,105730.0,1.171196]
[1750783415113,0.01011641,105740.0,105730.0,1.49921931]
[1750783415357,0.00065988,105740.0,105730.0,1.49921931]
[1750783415563,0.00465988,105740.0,105730.0,1.49921931]
[1750783415784,0.00965988,105740.0,105730.0,2.22548347]
[1750783416001,0.00965988,105740.0,105730.0,2.33516918]
[1750783416226,0.00965988,105740.0,105730.0,2.36356018]
[1750783416433,0.00965988,105740.0,105730.0,2.21936815]
[1750783416711,0.00565988,105740.0,105730.0,2.21936815]
[1750783416926,0.00565988,105740.0,105730.0,2.22036815]
[1750783417797,0.00065988,105740.0,105730.0,2.22036815]
[1750783418031,0.00065988,105740.0,105730.0,2.01520815]
[1750783418254,0.00065988,105740.0,105730.0,2.22208815]
[1750783418472,0.00065988,105740.0,105730.0,2.22508815]
[1750783418905,0.00065988,105740.0,105730.0,2.92508815]
[1750783419116,0.00065988,105740.0,105730.0,2.95284797]
[1750783421575,0.00065988,105740.0,105730.0,2.97179797]
[1750783421834,0.00065988,105740.0,105730.0,2.95284797]
[1750783422289,0.0158924,105760.0,105750.0,1.22203384]
[1750783422537,0.0073312,105770.0,105750.0,1.60906363]
[1750783422771,0.00026,105790.0,105780.0,1.25183131]
[1750783423009,0.00026,105790.0,105780.0,1.81185216]
[1750783423255,0.00049026,105800.0,105790.0,0.61625161]
[1750783423497,0.00205,105850.0,105840.0,0.2615081]
[1750783423734,0.00205,105850.0,105840.0,1.0767481]
[1750783423985,0.0025098,105850.0,105840.0,1.0767481]
[1750783424212,0.0025098,105850.0,105840.0,1.0515081]
[1750783424486,0.0025098,105850.0,105840.0,1.2908281]
[1750783424711,0.0025098,105850.0,105840.0,1.40087081]
[1750783424940,0.0025098,105850.0,105840.0,1.40287081]
[1750783425180,0.0025098,105850.0,105840.0,1.9147254]
[1750783425418,0.0025098,105850.0,105840.0,1.40487081]
[1750783425656,0.0025098,105850.0,105840.0,1.9167254]
[1750783425888,0.0025098,105850.0,105840.0,1.90218455]
[1750783426118,0.0025098,105850.0,105840.0,1.40487081]
[1750783427048,0.0025098,105850.0,105840.0,1.9167254]
[1750783427282,0.0025098,105850.0,105840.0,2.07620731]
[1750783427530,0.0025098,105850.0,105840.0,1.56435272]
[1750783427780,0.1445207,105920.0,105910.0,0.21716443]
[1750783428020,0.14377113,105920.0,105910.0,0.20772308]
[1750783428473,0.14377113,105920.0,105910.0,0.21716443]
[1750783428474,0.09390907,105920.0,105910.0,0.21716443]
[1750783428484,0.04609134,105920.0,105910.0,0.21716443]
[1750783428709,0.04609134,105920.0,105910.0,0.23916443]
[1750783428942,0.04609134,105920.0,105910.0,0.56266629]
[1750783429174,0.03664818,105920.0,105910.0,0.57820714]
[1750783429409,0.03664818,105920.0,105910.0,0.55932417]
[1750783429645,0.02720502,105920.0,105910.0,0.44988229]
[1750783429868,0.02720502,105920.0,105910.0,0.55932426]
[1750783430100,0.02720502,105920.0,105910.0,0.57210826]
[1750783430587,0.02717767,105920.0,105910.0,0.57210826]
[1750783430809,0.02717767,105920.0,105910.0,0.57210844]
[1750783431043,0.02717767,105920.0,105910.0,0.53434144]
[1750783431264,0.04605868,105920.0,105910.0,0.53434144]
[1750783431488,0.02717767,105920.0,105910.0,0.43434144]
[1750783431717,0.04997767,105920.0,105910.0,0.43434144]
[1750783431953,0.02817767,105920.0,105910.0,0.15]
[1750783432235,0.37217767,105920.0,105910.0,0.28434144]
[1750783432457,0.37217767,105920.0,105910.0,0.34828146]
[1750783432458,0.37817767,105920.0,105910.0,0.34828146]
[1750783432682,0.38161804,105920.0,105910.0,0.18883958]
[1750783432907,0.92441318,105920.0,105910.0,0.18883958]
[1750783433129,0.44502843,105920.0,105910.0,0.18883958]
[1750783433348,0.42614751,105920.0,105910.0,0.18883958]
[1750783433574,0.94744274,105920.0,105910.0,0.18883958]
[1750783433793,0.43558753,105920.0,105910.0,0.18883958]
[1750783434017,0.42614698,105920.0,105910.0,0.18883958]
[1750783434247,0.42114698,105920.0,105910.0,0.18883958]
[1750783434460,0.40748779,105920.0,105910.0,0.18883958]
[1750783434707,0.43842878,105920.0,105910.0,0.18883958]
[1750783434923,0.93300148,105920.0,105910.0,0.18883958]
[1750783435145,0.42514689,105920.0,105910.0,0.18883958]
[1750783435371,0.42114689,105920.0,105910.0,0.18883958]
[1750783435607,0.44002879,105920.0,105910.0,0.18883958]
[1750783435836,0.93500184,105920.0,105910.0,0.18883958]
[1750783436093,0.01888261,105910.0,105900.0,0.33884437]
[1750783436314,0.01888457,105900.0,105890.0,0.18885452]
[1750783436542,0.01809399,105900.0,105890.0,0.28885452]
[1750783436775,0.0086533,105900.0,105890.0,0.28885452]
[1750783436995,0.0086533,105900.0,105890.0,0.40324345]
[1750783437245,0.0086533,105900.0,105890.0,0.41268658]
[1750783437679,0.0086533,105900.0,105890.0,0.39380005]
[1750783437902,0.0086533,105900.0,105890.0,0.38435638]
[1750783438145,0.0086533,105900.0,105890.0,0.39380014]
[1750783438360,0.01888288,105910.0,105900.0,0.18885741]
[1750783438361,0.05420782,105910.0,105900.0,0.18885741]
[1750783438588,0.05926647,105910.0,105900.0,0.18885741]
[1750783438812,0.04982459,105910.0,105900.0,0.18885741]
[1750783439473,0.03132459,105910.0,105900.0,0.18885741]
[1750783439687,0.01744117,105910.0,105900.0,0.18885741]
[1750783439956,0.03632423,105910.0,105900.0,0.28885741]
[1750783440179,0.02688261,105910.0,105900.0,0.26482721]
[1750783440610,0.03632423,105910.0,105900.0,0.36482721]
[1750783440836,0.04576611,105910.0,105900.0,0.28885741]
[1750783441055,0.04576603,105910.0,105900.0,0.18885741]
[1750783441311,0.03632423,105910.0,105900.0,0.18885741]
[1750783441528,0.05520774,105910.0,105900.0,0.18885741]
[1750783441745,0.04076594,105910.0,105900.0,0.18885741]